[Event "Early Titled Tuesday Blitz | February 8 2022"]
[White "Demin, Vladimir"]
[Black "Moskvin, Anatoly"]
[WhiteFideId "4167457"]
[BlackFideId "24199990"]
[WhiteElo "2498"]
[BlackElo "2079"]
[Result "1-0"]
[Round "05"]
[TimeControl "180+1"]
[Date "2022.02.08"]
[WhiteClock "0:00:05"]
[BlackClock "0:00:05"]

1. e4 {[%clk 0:02:31]}  e5 {[%clk 0:02:55]} 2. Nf3 {[%clk 0:02:31]}  Nc6 {[%clk 0:02:55]} 3. Bb5 {[%clk 0:02:30]}  Nge7 {[%clk 0:02:55]} 4. Nc3 {[%clk 0:02:29]}  a6 {[%clk 0:02:55]} 5. Ba4 {[%clk 0:02:29]}  d6 {[%clk 0:02:56]} 6. O-O {[%clk 0:02:29]}  Bd7 {[%clk 0:02:56]} 7. d3 {[%clk 0:02:25]}  Ng6 {[%clk 0:02:55]} 8. Bb3 {[%clk 0:02:14]}  Be7 {[%clk 0:02:54]} 9. d4 {[%clk 0:02:13]}  Bg4 {[%clk 0:02:39]} 10. h3 {[%clk 0:01:31]}  Bxf3 {[%clk 0:02:04]} 11. Qxf3 {[%clk 0:01:30]}  O-O {[%clk 0:02:05]} 12. dxe5 {[%clk 0:01:27]}  Nd4 {[%clk 0:01:57]} 13. Qd1 {[%clk 0:01:18]}  Nxb3 {[%clk 0:01:56]} 14. axb3 {[%clk 0:01:18]}  dxe5 {[%clk 0:01:54]} 15. Be3 {[%clk 0:01:16]}  Qxd1 {[%clk 0:01:34]} 16. Rfxd1 {[%clk 0:01:17]}  Rfd8 {[%clk 0:01:34]} 17. Nd5 {[%clk 0:01:06]}  Bd6 {[%clk 0:01:04]} 18. Kf1 {[%clk 0:01:02]}  Nf8 {[%clk 0:01:01]} 19. c3 {[%clk 0:00:55]}  Ne6 {[%clk 0:01:01]} 20. b4 {[%clk 0:00:55]}  c6 {[%clk 0:00:44]} 21. Nb6 {[%clk 0:00:53]}  Rab8 {[%clk 0:00:44]} 22. g3 {[%clk 0:00:51]}  Bc7 {[%clk 0:00:43]} 23. h4 {[%clk 0:00:39]}  h5 {[%clk 0:00:42]} 24. Ke2 {[%clk 0:00:39]}  f6 {[%clk 0:00:42]} 25. Nd7 {[%clk 0:00:25]}  Ra8 {[%clk 0:00:37]} 26. Nb6 {[%clk 0:00:22]}  Rab8 {[%clk 0:00:37]} 27. Rd2 {[%clk 0:00:20]}  Kf7 {[%clk 0:00:36]} 28. Rad1 {[%clk 0:00:19]}  Rxd2+ {[%clk 0:00:34]} 29. Rxd2 {[%clk 0:00:20]}  Rd8 {[%clk 0:00:34]} 30. Rxd8 {[%clk 0:00:20]}  Bxd8 {[%clk 0:00:35]} 31. Kd3 {[%clk 0:00:20]}  Bxb6 {[%clk 0:00:28]} 32. Bxb6 {[%clk 0:00:20]}  g5 {[%clk 0:00:27]} 33. Be3 {[%clk 0:00:20]}  g4 {[%clk 0:00:27]} 34. Kc4 {[%clk 0:00:19]}  b5+ {[%clk 0:00:25]} 35. Kd3 {[%clk 0:00:19]}  Kg6 {[%clk 0:00:25]} 36. Bc5 {[%clk 0:00:19]}  f5 {[%clk 0:00:23]} 37. Be3 {[%clk 0:00:17]}  f4 {[%clk 0:00:15]} 38. gxf4 {[%clk 0:00:14]}  exf4 {[%clk 0:00:14]} 39. Ba7 {[%clk 0:00:14]}  Kf6 {[%clk 0:00:10]} 40. Bb8 {[%clk 0:00:14]}  f3 {[%clk 0:00:04]} 41. Bg3 {[%clk 0:00:14]}  Nf8 {[%clk 0:00:04]} 42. Ke3 {[%clk 0:00:14]}  Ne6 {[%clk 0:00:05]} 43. Bb8 {[%clk 0:00:12]}  Kg6 {[%clk 0:00:05]} 44. Bh2 {[%clk 0:00:10]}  Kf6 {[%clk 0:00:06]} 45. Bg3 {[%clk 0:00:11]}  Kg6 {[%clk 0:00:06]} 46. Be5 {[%clk 0:00:11]}  Kf7 {[%clk 0:00:06]} 47. Bd4 {[%clk 0:00:09]}  Kg6 {[%clk 0:00:07]} 48. Bh8 {[%clk 0:00:08]}  Kh7 {[%clk 0:00:06]} 49. Bd4 {[%clk 0:00:06]}  Kg6 {[%clk 0:00:07]} 50. Be5 {[%clk 0:00:06]}  Kf7 {[%clk 0:00:04]} 51. Bb8 {[%clk 0:00:06]}  Kg6 {[%clk 0:00:02]} 52. Kd3 {[%clk 0:00:06]}  Kf7 {[%clk 0:00:03]} 53. b3 {[%clk 0:00:06]}  Kg6 {[%clk 0:00:04]} 54. Ke3 {[%clk 0:00:06]}  Kf7 {[%clk 0:00:04]} 55. e5 {[%clk 0:00:05]}  Kg6 {[%clk 0:00:04]} 56. Ke4 {[%clk 0:00:05]}  Nf8 {[%clk 0:00:04]} 57. Ba7 {[%clk 0:00:05]}  Ne6 {[%clk 0:00:04]} 58. Be3 {[%clk 0:00:05]}  Nf8 {[%clk 0:00:03]} 59. Kf4 {[%clk 0:00:05]}  Ne6+ {[%clk 0:00:04]} 60. Ke4 {[%clk 0:00:05]}  Nf8 {[%clk 0:00:05]} 61. c4 {[%clk 0:00:05]}  Ne6 {[%clk 0:00:06]} 62. Ba7 {[%clk 0:00:04]}  Nf8 {[%clk 0:00:05]} 63. Bc5 {[%clk 0:00:04]}  Ne6 {[%clk 0:00:05]} 64. Bd6 {[%clk 0:00:03]}  Kf7 {[%clk 0:00:06]} 65. Bb8 {[%clk 0:00:02]}  Kg6 {[%clk 0:00:06]} 66. Ba7 {[%clk 0:00:02]}  Kf7 {[%clk 0:00:05]} 67. Be3 {[%clk 0:00:03]}  Kg6 {[%clk 0:00:05]} 68. Bb6 {[%clk 0:00:03]}  Kf7 {[%clk 0:00:05]} 69. Kf5 {[%clk 0:00:03]}  Ng7+ {[%clk 0:00:03]} 70. Kg5 {[%clk 0:00:03]}  Ke6 {[%clk 0:00:03]} 71. Kh6 {[%clk 0:00:02]}  Nf5+ {[%clk 0:00:04]} 72. Kxh5 {[%clk 0:00:02]}  g3 {[%clk 0:00:05]} 73. fxg3 {[%clk 0:00:02]}  Nxg3+ {[%clk 0:00:03]} 74. Kg4 {[%clk 0:00:02]}  Nf5 {[%clk 0:00:03]} 75. h5 {[%clk 0:00:02]}  Kxe5 {[%clk 0:00:03]} 76. Kxf3 {[%clk 0:00:02]}  Kf6 {[%clk 0:00:04]} 77. Kg4 {[%clk 0:00:02]}  Nd6 {[%clk 0:00:03]} 78. Bd8+ {[%clk 0:00:02]}  Kg7 {[%clk 0:00:03]} 79. c5 {[%clk 0:00:02]}  Ne4 {[%clk 0:00:03]} 80. Bg5 {[%clk 0:00:02]}  Nd2 {[%clk 0:00:03]} 81. Kf5 {[%clk 0:00:02]}  Nxb3 {[%clk 0:00:02]} 82. h6+ {[%clk 0:00:02]}  Kh7 {[%clk 0:00:03]} 83. Ke6 {[%clk 0:00:02]}  a5 {[%clk 0:00:04]} 84. bxa5 {[%clk 0:00:02]}  Nxa5 {[%clk 0:00:05]} 85. Kd6 {[%clk 0:00:03]}  Nb3 {[%clk 0:00:06]} 86. Kxc6 {[%clk 0:00:03]}  Nd4+ {[%clk 0:00:06]} 87. Kd5 {[%clk 0:00:03]}  Nf3 {[%clk 0:00:05]} 88. Be3 {[%clk 0:00:02]}  b4 {[%clk 0:00:05]} 89. c6 {[%clk 0:00:03]}  b3 {[%clk 0:00:05]} 90. c7 {[%clk 0:00:03]}  b2 {[%clk 0:00:05]} 91. c8=Q {[%clk 0:00:04]}  b1=Q {[%clk 0:00:05]} 92. Qd7+ {[%clk 0:00:03]}  Kg6 {[%clk 0:00:06]} 93. Qg7+ {[%clk 0:00:04]}  Kh5 {[%clk 0:00:06]} 94. Qf7+ {[%clk 0:00:03]}  Kh4 {[%clk 0:00:05]} 95. Qf4+ {[%clk 0:00:04]}  Kh5 {[%clk 0:00:04]} 96. Qxf3+ {[%clk 0:00:04]}  Kg6 {[%clk 0:00:05]} 97. Qg4+ {[%clk 0:00:04]}  Kh7 {[%clk 0:00:05]} 98. Qg7# {[%clk 0:00:05]} 1-0


[Site "https://www.chess.com"]

[Event "Early Titled Tuesday Blitz | February 8 2022"]
[White "Dzhaparov, Medet"]
[Black "Roman, Rodrigo"]
[WhiteFideId "13803689"]
[BlackFideId "3701220"]
[WhiteElo "1702"]
[BlackElo "2001"]
[Result "1/2-1/2"]
[Round "05"]
[TimeControl "180+1"]
[Date "2022.02.08"]
[WhiteClock "0:01:17"]
[BlackClock "0:00:19"]

1. e4 {[%clk 0:02:59]}  e6 {[%clk 0:02:59]} 2. d4 {[%clk 0:02:59]}  d5 {[%clk 0:03:00]} 3. exd5 {[%clk 0:02:59]}  exd5 {[%clk 0:03:00]} 4. Nf3 {[%clk 0:02:59]}  Nf6 {[%clk 0:03:00]} 5. Bd3 {[%clk 0:02:59]}  Be7 {[%clk 0:03:01]} 6. O-O {[%clk 0:02:59]}  O-O {[%clk 0:03:01]} 7. Re1 {[%clk 0:02:59]}  Re8 {[%clk 0:03:02]} 8. Bg5 {[%clk 0:02:59]}  Be6 {[%clk 0:03:01]} 9. Nc3 {[%clk 0:02:59]}  Nbd7 {[%clk 0:02:59]} 10. Ne5 {[%clk 0:02:56]}  c6 {[%clk 0:02:53]} 11. Nxd7 {[%clk 0:02:54]}  Qxd7 {[%clk 0:02:51]} 12. Qf3 {[%clk 0:02:52]}  h6 {[%clk 0:02:49]} 13. Bh4 {[%clk 0:02:50]}  Bg4 {[%clk 0:02:41]} 14. Qe3 {[%clk 0:02:17]}  Be6 {[%clk 0:02:01]} 15. Qd2 {[%clk 0:02:11]}  Qc7 {[%clk 0:01:54]} 16. Bg3 {[%clk 0:02:08]}  Bd6 {[%clk 0:01:54]} 17. Bxd6 {[%clk 0:02:05]}  Qxd6 {[%clk 0:01:55]} 18. Ne2 {[%clk 0:02:04]}  Rad8 {[%clk 0:01:47]} 19. Ng3 {[%clk 0:02:03]}  Rd7 {[%clk 0:01:37]} 20. c3 {[%clk 0:02:02]}  Rde7 {[%clk 0:01:34]} 21. h3 {[%clk 0:01:57]}  Bd7 {[%clk 0:01:23]} 22. Bf5 {[%clk 0:01:53]}  Rxe1+ {[%clk 0:01:00]} 23. Rxe1 {[%clk 0:01:54]}  Rxe1+ {[%clk 0:01:00]} 24. Qxe1 {[%clk 0:01:54]}  Kf8 {[%clk 0:00:58]} 25. Bxd7 {[%clk 0:01:53]}  Qxd7 {[%clk 0:00:59]} 26. Qe5 {[%clk 0:01:53]}  Qe7 {[%clk 0:00:52]} 27. Qb8+ {[%clk 0:01:50]}  Ne8 {[%clk 0:00:49]} 28. Qxa7 {[%clk 0:01:49]}  Qe1+ {[%clk 0:00:47]} 29. Kh2 {[%clk 0:01:49]}  Qxf2 {[%clk 0:00:47]} 30. Qxb7 {[%clk 0:01:47]}  g6 {[%clk 0:00:35]} 31. Qxc6 {[%clk 0:01:44]}  Qxb2 {[%clk 0:00:34]} 32. Qxd5 {[%clk 0:01:43]}  Qxc3 {[%clk 0:00:34]} 33. Qc5+ {[%clk 0:01:43]}  Qxc5 {[%clk 0:00:33]} 34. dxc5 {[%clk 0:01:44]}  Ke7 {[%clk 0:00:34]} 35. Ne4 {[%clk 0:01:44]}  Ke6 {[%clk 0:00:30]} 36. Nc3 {[%clk 0:01:39]}  Kd7 {[%clk 0:00:29]} 37. a4 {[%clk 0:01:39]}  Kc6 {[%clk 0:00:29]} 38. Ne4 {[%clk 0:01:38]}  f5 {[%clk 0:00:27]} 39. Nd6 {[%clk 0:01:35]}  Nf6 {[%clk 0:00:20]} 40. Nf7 {[%clk 0:01:30]}  Ng8 {[%clk 0:00:20]} 41. Kg3 {[%clk 0:01:29]}  Kxc5 {[%clk 0:00:20]} 42. Kf4 {[%clk 0:01:29]}  Kb4 {[%clk 0:00:20]} 43. Nh8 {[%clk 0:01:29]}  Ne7 {[%clk 0:00:18]} 44. Ke5 {[%clk 0:01:28]}  Kxa4 {[%clk 0:00:19]} 45. Kf6 {[%clk 0:01:29]}  Nd5+ {[%clk 0:00:19]} 46. Kxg6 {[%clk 0:01:28]}  Ne3 {[%clk 0:00:20]} 47. g3 {[%clk 0:01:22]}  Kb4 {[%clk 0:00:20]} 48. Kxh6 {[%clk 0:01:21]}  Kc4 {[%clk 0:00:21]} 49. Kg5 {[%clk 0:01:22]}  Kd4 {[%clk 0:00:21]} 50. Kf4 {[%clk 0:01:22]}  Kd3 {[%clk 0:00:20]} 51. Ng6 {[%clk 0:01:22]}  Kd4 {[%clk 0:00:20]} 52. h4 {[%clk 0:01:23]}  Nd5+ {[%clk 0:00:19]} 53. Kxf5 {[%clk 0:01:23]}  Ke3 {[%clk 0:00:19]} 54. h5 {[%clk 0:01:23]}  Nc7 {[%clk 0:00:18]} 55. h6 {[%clk 0:01:23]}  Ne8 {[%clk 0:00:19]} 56. h7 {[%clk 0:01:22]}  Ng7+ {[%clk 0:00:19]} 57. Kf6 {[%clk 0:01:22]}  Nh5+ {[%clk 0:00:20]} 58. Kg5 {[%clk 0:01:22]}  Nxg3 {[%clk 0:00:21]} 59. h8=Q {[%clk 0:01:22]}  Ne4+ {[%clk 0:00:22]} 60. Kf5 {[%clk 0:01:20]}  Ng3+ {[%clk 0:00:21]} 61. Kg4 {[%clk 0:01:20]}  Ne4 {[%clk 0:00:21]} 62. Qe5 {[%clk 0:01:20]}  Kd3 {[%clk 0:00:21]} 63. Kf4 {[%clk 0:01:21]}  Nc3 {[%clk 0:00:20]} 64. Qe3+ {[%clk 0:01:20]}  Kc4 {[%clk 0:00:19]} 65. Ne5+ {[%clk 0:01:21]}  Kb3 {[%clk 0:00:19]} 66. Qd4 {[%clk 0:01:17]}  Ne2+ {[%clk 0:00:18]} 67. Ke3 {[%clk 0:01:17]}  Nxd4 {[%clk 0:00:19]} 1/2-1/2


[Site "https://www.chess.com"]

[Event "Early Titled Tuesday Blitz | February 8 2022"]
[White "Estrada Nieto, Julian"]
[Black "Salimova, Nurgyul"]
[WhiteFideId "5101018"]
[BlackFideId "2915138"]
[WhiteElo "2246"]
[BlackElo "2185"]
[Result "1-0"]
[Round "05"]
[TimeControl "180+1"]
[Date "2022.02.08"]
[WhiteClock "0:00:03"]
[BlackClock "0:00:04"]

1. e4 {[%clk 0:03:00]}  c6 {[%clk 0:02:58]} 2. d4 {[%clk 0:03:00]}  d5 {[%clk 0:02:59]} 3. exd5 {[%clk 0:03:00]}  cxd5 {[%clk 0:02:59]} 4. Bd3 {[%clk 0:03:00]}  Nf6 {[%clk 0:02:59]} 5. Bf4 {[%clk 0:02:56]}  Bg4 {[%clk 0:02:44]} 6. Nf3 {[%clk 0:02:54]}  Nc6 {[%clk 0:02:43]} 7. c3 {[%clk 0:02:54]}  e6 {[%clk 0:02:26]} 8. Qb3 {[%clk 0:02:53]}  Bd6 {[%clk 0:02:14]} 9. Ne5 {[%clk 0:02:25]}  O-O {[%clk 0:02:01]} 10. Qxb7 {[%clk 0:02:09]}  Na5 {[%clk 0:01:30]} 11. Qa6 {[%clk 0:01:48]}  Rb8 {[%clk 0:01:20]} 12. b4 {[%clk 0:01:42]}  Nc4 {[%clk 0:00:43]} 13. Bxc4 {[%clk 0:01:36]}  dxc4 {[%clk 0:00:43]} 14. Qxc4 {[%clk 0:01:06]}  Rc8 {[%clk 0:00:36]} 15. Qb3 {[%clk 0:00:55]}  Nd5 {[%clk 0:00:31]} 16. Bg3 {[%clk 0:00:50]}  Bxb4 {[%clk 0:00:03]} 17. Nxg4 {[%clk 0:00:33]}  Bxc3+ {[%clk 0:00:03]} 18. Nxc3 {[%clk 0:00:33]}  Rxc3 {[%clk 0:00:04]} 19. Qd1 {[%clk 0:00:29]}  h5 {[%clk 0:00:04]} 20. O-O {[%clk 0:00:16]}  hxg4 {[%clk 0:00:05]} 21. Qxg4 {[%clk 0:00:17]}  Qf6 {[%clk 0:00:04]} 22. Be5 {[%clk 0:00:16]}  Qh6 {[%clk 0:00:04]} 23. Rab1 {[%clk 0:00:14]}  Rfc8 {[%clk 0:00:04]} 24. h4 {[%clk 0:00:13]}  Qh7 {[%clk 0:00:04]} 25. Rb7 {[%clk 0:00:11]}  Rc2 {[%clk 0:00:03]} 26. h5 {[%clk 0:00:10]}  Rd2 {[%clk 0:00:03]} 27. Rxa7 {[%clk 0:00:09]}  Rdc2 {[%clk 0:00:04]} 28. Rb7 {[%clk 0:00:07]}  Rc1 {[%clk 0:00:04]} 29. Rxc1 {[%clk 0:00:06]}  Rxc1+ {[%clk 0:00:05]} 30. Kh2 {[%clk 0:00:07]}  Rc8 {[%clk 0:00:06]} 31. Qf3 {[%clk 0:00:06]}  Rf8 {[%clk 0:00:05]} 32. Bd6 {[%clk 0:00:05]}  Nf6 {[%clk 0:00:04]} 33. Bxf8 {[%clk 0:00:05]}  Nxh5 {[%clk 0:00:03]} 34. Rb8 {[%clk 0:00:04]}  Nf6+ {[%clk 0:00:03]} 35. Kg1 {[%clk 0:00:04]}  Qc2 {[%clk 0:00:02]} 36. Be7+ {[%clk 0:00:02]}  Kh7 {[%clk 0:00:02]} 37. Bxf6 {[%clk 0:00:02]}  Qc1+ {[%clk 0:00:03]} 38. Kh2 {[%clk 0:00:03]}  Qh6+ {[%clk 0:00:04]} 39. Qh3 {[%clk 0:00:03]} 1-0


[Site "https://www.chess.com"]

[Event "Early Titled Tuesday Blitz | February 8 2022"]
[White "Eynullayev, Altay"]
[Black "Ezat, Mohamed"]
[WhiteFideId "13413562"]
[BlackFideId "10600906"]
[WhiteElo "2079"]
[BlackElo "2386"]
[Result "0-1"]
[Round "05"]
[TimeControl "180+1"]
[Date "2022.02.08"]
[WhiteClock "0:00:24"]
[BlackClock "0:00:24"]

1. e4 {[%clk 0:03:00]}  c5 {[%clk 0:02:54]} 2. Nf3 {[%clk 0:03:00]}  Nc6 {[%clk 0:02:53]} 3. Bb5 {[%clk 0:02:59]}  e6 {[%clk 0:02:51]} 4. O-O {[%clk 0:02:59]}  Nge7 {[%clk 0:02:49]} 5. Re1 {[%clk 0:02:59]}  a6 {[%clk 0:02:48]} 6. Bf1 {[%clk 0:03:00]}  d6 {[%clk 0:02:40]} 7. c3 {[%clk 0:02:59]}  g6 {[%clk 0:02:37]} 8. d4 {[%clk 0:02:59]}  cxd4 {[%clk 0:02:36]} 9. cxd4 {[%clk 0:02:58]}  Bg7 {[%clk 0:02:34]} 10. Nc3 {[%clk 0:02:58]}  O-O {[%clk 0:02:33]} 11. Bg5 {[%clk 0:02:56]}  h6 {[%clk 0:02:32]} 12. Be3 {[%clk 0:02:54]}  d5 {[%clk 0:02:31]} 13. exd5 {[%clk 0:02:36]}  Nxd5 {[%clk 0:02:30]} 14. Nxd5 {[%clk 0:02:35]}  Qxd5 {[%clk 0:02:27]} 15. Rc1 {[%clk 0:02:23]}  b5 {[%clk 0:02:22]} 16. Rc5 {[%clk 0:02:20]}  Qd6 {[%clk 0:02:10]} 17. Qd2 {[%clk 0:02:07]}  Kh7 {[%clk 0:02:02]} 18. Bf4 {[%clk 0:01:37]}  Qd7 {[%clk 0:01:58]} 19. d5 {[%clk 0:01:35]}  exd5 {[%clk 0:01:53]} 20. Rxd5 {[%clk 0:01:34]}  Qb7 {[%clk 0:01:46]} 21. Bd3 {[%clk 0:01:24]}  Nb4 {[%clk 0:01:08]} 22. Be4 {[%clk 0:01:22]}  Nxd5 {[%clk 0:01:02]} 23. Bxd5 {[%clk 0:01:23]}  Qa7 {[%clk 0:00:45]} 24. Be3 {[%clk 0:01:18]}  Qb8 {[%clk 0:00:44]} 25. Bxa8 {[%clk 0:01:17]}  Qxa8 {[%clk 0:00:43]} 26. Bc5 {[%clk 0:01:17]}  Rg8 {[%clk 0:00:40]} 27. Re7 {[%clk 0:01:12]}  Be6 {[%clk 0:00:37]} 28. Nd4 {[%clk 0:00:40]}  Qd5 {[%clk 0:00:34]} 29. Qc3 {[%clk 0:00:27]}  Rc8 {[%clk 0:00:30]} 30. b4 {[%clk 0:00:24]}  Bxd4 {[%clk 0:00:24]} 0-1


[Site "https://www.chess.com"]

[Event "Early Titled Tuesday Blitz | February 8 2022"]
[White "Fajdetic, Hrvoje"]
[Black "Heinemann, Josefine"]
[WhiteFideId "14501945"]
[BlackFideId "12900460"]
[WhiteElo "2140"]
[BlackElo "2300"]
[Result "0-1"]
[Round "05"]
[TimeControl "180+1"]
[Date "2022.02.08"]
[WhiteClock "0:00:11"]
[BlackClock "0:00:28"]

1. d4 {[%clk 0:02:54]}  Nf6 {[%clk 0:02:59]} 2. Bf4 {[%clk 0:02:54]}  d5 {[%clk 0:02:57]} 3. e3 {[%clk 0:02:53]}  c5 {[%clk 0:02:54]} 4. Nc3 {[%clk 0:02:52]}  a6 {[%clk 0:02:52]} 5. dxc5 {[%clk 0:02:49]}  Nc6 {[%clk 0:02:52]} 6. Nf3 {[%clk 0:02:42]}  Bg4 {[%clk 0:02:48]} 7. Be2 {[%clk 0:02:33]}  e6 {[%clk 0:02:47]} 8. Na4 {[%clk 0:02:32]}  Bxc5 {[%clk 0:02:39]} 9. Nxc5 {[%clk 0:02:31]}  Qa5+ {[%clk 0:02:39]} 10. c3 {[%clk 0:02:31]}  Qxc5 {[%clk 0:02:37]} 11. Ne5 {[%clk 0:02:25]}  Bxe2 {[%clk 0:02:35]} 12. Qxe2 {[%clk 0:02:26]}  Nxe5 {[%clk 0:02:35]} 13. Bxe5 {[%clk 0:02:27]}  Qe7 {[%clk 0:02:34]} 14. O-O {[%clk 0:02:19]}  O-O {[%clk 0:02:33]} 15. c4 {[%clk 0:02:15]}  dxc4 {[%clk 0:02:28]} 16. Qxc4 {[%clk 0:02:14]}  Rac8 {[%clk 0:02:29]} 17. Qb3 {[%clk 0:02:10]}  Nd5 {[%clk 0:02:23]} 18. Rac1 {[%clk 0:01:59]}  b5 {[%clk 0:02:12]} 19. a4 {[%clk 0:01:38]}  Qb4 {[%clk 0:02:01]} 20. Qxb4 {[%clk 0:01:30]}  Nxb4 {[%clk 0:02:01]} 21. Bd6 {[%clk 0:01:26]}  Nd3 {[%clk 0:02:01]} 22. Rcd1 {[%clk 0:01:18]}  Nxb2 {[%clk 0:01:59]} 23. axb5 {[%clk 0:01:09]}  Nxd1 {[%clk 0:01:39]} 24. Bxf8 {[%clk 0:01:08]}  Kxf8 {[%clk 0:01:38]} 25. Rxd1 {[%clk 0:01:07]}  axb5 {[%clk 0:01:38]} 26. Rb1 {[%clk 0:01:06]}  Rb8 {[%clk 0:01:37]} 27. Rb4 {[%clk 0:01:05]}  Ke7 {[%clk 0:01:37]} 28. Kf1 {[%clk 0:01:01]}  Kd6 {[%clk 0:01:37]} 29. Ke2 {[%clk 0:01:02]}  Kc5 {[%clk 0:01:35]} 30. Rh4 {[%clk 0:00:53]}  b4 {[%clk 0:01:28]} 31. Kd1 {[%clk 0:00:47]}  b3 {[%clk 0:01:24]} 32. Kc1 {[%clk 0:00:46]}  h6 {[%clk 0:01:24]} 33. Kb2 {[%clk 0:00:41]}  f5 {[%clk 0:01:14]} 34. Ra4 {[%clk 0:00:36]}  g5 {[%clk 0:01:01]} 35. h4 {[%clk 0:00:33]}  Rb4 {[%clk 0:00:50]} 36. Ra6 {[%clk 0:00:28]}  Kd5 {[%clk 0:00:47]} 37. hxg5 {[%clk 0:00:21]}  hxg5 {[%clk 0:00:48]} 38. f3 {[%clk 0:00:18]}  Ke5 {[%clk 0:00:33]} 39. Ra5+ {[%clk 0:00:17]}  Kd6 {[%clk 0:00:29]} 40. Ra3 {[%clk 0:00:16]}  Kc5 {[%clk 0:00:25]} 41. Rxb3 {[%clk 0:00:16]}  Kc4 {[%clk 0:00:25]} 42. Rxb4+ {[%clk 0:00:16]}  Kxb4 {[%clk 0:00:26]} 43. Kc2 {[%clk 0:00:16]}  Kc4 {[%clk 0:00:26]} 44. g3 {[%clk 0:00:15]}  e5 {[%clk 0:00:26]} 45. g4 {[%clk 0:00:14]}  fxg4 {[%clk 0:00:23]} 46. fxg4 {[%clk 0:00:14]}  e4 {[%clk 0:00:24]} 47. Kd2 {[%clk 0:00:13]}  Kb3 {[%clk 0:00:24]} 48. Kd1 {[%clk 0:00:10]}  Kc3 {[%clk 0:00:24]} 49. Ke2 {[%clk 0:00:08]}  Kc2 {[%clk 0:00:24]} 50. Ke1 {[%clk 0:00:08]}  Kd3 {[%clk 0:00:24]} 51. Kf2 {[%clk 0:00:08]}  Kd2 {[%clk 0:00:25]} 52. Kg3 {[%clk 0:00:08]}  Kxe3 {[%clk 0:00:26]} 53. Kg2 {[%clk 0:00:08]}  Kf4 {[%clk 0:00:26]} 54. Kf2 {[%clk 0:00:08]}  Kxg4 {[%clk 0:00:25]} 55. Ke3 {[%clk 0:00:09]}  Kf5 {[%clk 0:00:26]} 56. Kf2 {[%clk 0:00:09]}  Kf4 {[%clk 0:00:26]} 57. Ke2 {[%clk 0:00:10]}  g4 {[%clk 0:00:27]} 58. Kf2 {[%clk 0:00:10]}  g3+ {[%clk 0:00:27]} 59. Kg2 {[%clk 0:00:11]}  e3 {[%clk 0:00:28]} 0-1


[Site "https://www.chess.com"]

[Event "Early Titled Tuesday Blitz | February 8 2022"]
[White "Gaehwiler, Gabriel"]
[Black "Paravyan, David"]
[WhiteFideId "1314530"]
[BlackFideId "4194985"]
[WhiteElo "2383"]
[BlackElo "2569"]
[Result "1-0"]
[Round "05"]
[TimeControl "180+1"]
[Date "2022.02.08"]
[WhiteClock "0:00:11"]
[BlackClock "0:00:11"]

1. d4 {[%clk 0:03:00]}  Nf6 {[%clk 0:02:59]} 2. c4 {[%clk 0:03:01]}  g6 {[%clk 0:02:59]} 3. g3 {[%clk 0:03:01]}  d5 {[%clk 0:02:59]} 4. Nf3 {[%clk 0:02:57]}  dxc4 {[%clk 0:02:56]} 5. Na3 {[%clk 0:02:56]}  Be6 {[%clk 0:02:50]} 6. Bg2 {[%clk 0:02:55]}  Bg7 {[%clk 0:02:49]} 7. Ng5 {[%clk 0:02:50]}  Bd5 {[%clk 0:02:43]} 8. e4 {[%clk 0:02:50]}  Bc6 {[%clk 0:02:38]} 9. d5 {[%clk 0:02:45]}  h6 {[%clk 0:02:30]} 10. dxc6 {[%clk 0:02:27]}  Qxd1+ {[%clk 0:02:31]} 11. Kxd1 {[%clk 0:02:27]}  Nxc6 {[%clk 0:02:32]} 12. Nh3 {[%clk 0:02:26]}  O-O-O+ {[%clk 0:02:32]} 13. Ke2 {[%clk 0:02:16]}  Nd4+ {[%clk 0:02:22]} 14. Kf1 {[%clk 0:02:12]}  b5 {[%clk 0:02:22]} 15. Be3 {[%clk 0:02:09]}  Ng4 {[%clk 0:02:09]} 16. Rd1 {[%clk 0:01:31]}  Nxe3+ {[%clk 0:02:07]} 17. fxe3 {[%clk 0:01:31]}  Ne6 {[%clk 0:01:21]} 18. Ke2 {[%clk 0:01:20]}  Bxb2 {[%clk 0:01:10]} 19. Nxb5 {[%clk 0:01:18]}  c3 {[%clk 0:01:10]} 20. e5 {[%clk 0:00:49]}  c6 {[%clk 0:01:05]} 21. Bxc6 {[%clk 0:00:24]}  c2 {[%clk 0:01:02]} 22. Rc1 {[%clk 0:00:22]}  Bxc1 {[%clk 0:01:00]} 23. Rxc1 {[%clk 0:00:23]}  a6 {[%clk 0:01:00]} 24. Nc3 {[%clk 0:00:21]}  Kb8 {[%clk 0:00:58]} 25. Rxc2 {[%clk 0:00:21]}  Ka7 {[%clk 0:00:51]} 26. Nd5 {[%clk 0:00:21]}  Ng5 {[%clk 0:00:32]} 27. Nhf4 {[%clk 0:00:20]}  e6 {[%clk 0:00:32]} 28. Ne7 {[%clk 0:00:17]}  Kb6 {[%clk 0:00:18]} 29. Bg2 {[%clk 0:00:17]}  Rd7 {[%clk 0:00:17]} 30. Rb2+ {[%clk 0:00:17]}  Ka5 {[%clk 0:00:11]} 31. Nc6+ {[%clk 0:00:17]}  Ka4 {[%clk 0:00:12]} 32. Nd3 {[%clk 0:00:17]}  Ka3 {[%clk 0:00:12]} 33. Rb3+ {[%clk 0:00:15]}  Kxa2 {[%clk 0:00:12]} 34. Nc1+ {[%clk 0:00:15]}  Ka1 {[%clk 0:00:13]} 35. Nd4 {[%clk 0:00:10]}  Rc8 {[%clk 0:00:11]} 36. Nd3 {[%clk 0:00:10]}  Rdc7 {[%clk 0:00:09]} 37. Kd2 {[%clk 0:00:06]}  Rc4 {[%clk 0:00:09]} 38. h4 {[%clk 0:00:06]}  Ra4 {[%clk 0:00:07]} 39. Bc6 {[%clk 0:00:03]}  Ra2+ {[%clk 0:00:07]} 40. Kc3 {[%clk 0:00:03]}  Ne4+ {[%clk 0:00:07]} 41. Kb4 {[%clk 0:00:03]}  Rb8+ {[%clk 0:00:07]} 42. Kc4 {[%clk 0:00:01]}  Nd2+ {[%clk 0:00:08]} 43. Kc3 {[%clk 0:00:02]}  Nxb3 {[%clk 0:00:05]} 44. Nxb3+ {[%clk 0:00:03]}  Kb1 {[%clk 0:00:05]} 45. Be4 {[%clk 0:00:03]}  Rc2+ {[%clk 0:00:04]} 46. Kd4 {[%clk 0:00:03]}  Rb4+ {[%clk 0:00:04]} 47. Nxb4 {[%clk 0:00:02]}  Kb2 {[%clk 0:00:03]} 48. Bxc2 {[%clk 0:00:03]}  Ka3 {[%clk 0:00:03]} 49. Nc5 {[%clk 0:00:03]}  a5 {[%clk 0:00:03]} 50. Nca6 {[%clk 0:00:04]}  axb4 {[%clk 0:00:04]} 51. Nxb4 {[%clk 0:00:05]}  Kxb4 {[%clk 0:00:05]} 52. Be4 {[%clk 0:00:06]}  Kb5 {[%clk 0:00:05]} 53. h5 {[%clk 0:00:06]}  g5 {[%clk 0:00:03]} 54. Bh7 {[%clk 0:00:06]}  Kc6 {[%clk 0:00:04]} 55. Bg8 {[%clk 0:00:06]}  Kd7 {[%clk 0:00:05]} 56. Bxf7 {[%clk 0:00:07]}  Ke7 {[%clk 0:00:06]} 57. Bg6 {[%clk 0:00:07]}  Kd7 {[%clk 0:00:07]} 58. Kc5 {[%clk 0:00:08]}  Kc7 {[%clk 0:00:07]} 59. Be4 {[%clk 0:00:08]}  Kd7 {[%clk 0:00:08]} 60. g4 {[%clk 0:00:08]}  Kc7 {[%clk 0:00:08]} 61. Bc6 {[%clk 0:00:09]}  Kd8 {[%clk 0:00:09]} 62. Kd6 {[%clk 0:00:09]}  Kc8 {[%clk 0:00:10]} 63. Kxe6 {[%clk 0:00:09]}  Kc7 {[%clk 0:00:11]} 64. Kf7 {[%clk 0:00:10]}  Kb6 {[%clk 0:00:11]} 65. e6 {[%clk 0:00:11]} 1-0


[Site "https://www.chess.com"]